bitfinex/quotes_BTCUSD_20240723
["timestamp","ask_amount","ask_price","bid_price","bid_amount"]
[1721768292299,0.302809,66049.0,66041.0,0.2426]
[1721768292300,0.151405,66048.0,66047.0,0.1]
[1721768292499,0.60123491,66048.0,66047.0,0.1]
[1721768293076,0.90404491,66048.0,66047.0,0.1]
[1721768293484,0.29842491,66048.0,66047.0,0.1]
[1721768293825,0.15201991,66048.0,66047.0,0.1]
[1721768294013,0.15401991,66048.0,66047.0,0.1]
[1721768294218,0.60823491,66048.0,66047.0,0.1]
[1721768294416,0.15401991,66048.0,66047.0,0.1]
[1721768296041,0.30542491,66048.0,66047.0,0.1]
[1721768297991,0.151411,66045.0,66044.0,0.1]
[1721768298168,0.60125391,66045.0,66044.0,0.1]
[1721768298355,0.90407691,66045.0,66044.0,0.1]
[1721768299141,0.60125391,66045.0,66044.0,0.1]
[1721768299273,0.60125391,66045.0,66037.0,0.13808942]
[1721768299274,0.302833,66043.0,66042.0,0.1]
[1721768299475,0.29843591,66043.0,66042.0,0.10275599]
[1721768299678,0.29843591,66043.0,66042.0,0.1]
[1721768300504,0.151418,66042.0,66041.0,0.1]
[1721768300742,0.29843791,66042.0,66041.0,0.1]
[1721768300935,0.60127491,66042.0,66041.0,0.1]
[1721768301136,0.90411191,66042.0,66041.0,0.1]
[1721768301766,0.30286,66037.0,66036.0,0.1]
[1721768301935,0.151437,66034.0,66033.0,0.1]
[1721768302139,0.45429,66037.0,66036.0,0.1]
[1721768302315,0.75715,66037.0,66036.0,0.1]
[1721768302516,0.302869,66035.0,66034.0,0.05]
[1721768302731,0.302869,66035.0,66031.0,0.00275599]
[1721768302732,0.151441,66032.0,66031.0,0.00275599]
[1721768302932,0.672824,66032.0,66031.0,0.00275599]
[1721768303725,0.81984391,66032.0,66031.0,0.07624541]
[1721768303932,0.81984391,66032.0,66031.0,0.07348942]
[1721768303933,1.12272691,66032.0,66031.0,0.07348942]
[1721768304176,1.12372691,66032.0,66031.0,0.08048942]
[1721768304405,1.12372691,66032.0,66031.0,0.08548942]
[1721768304580,1.12372691,66032.0,66031.0,0.08048942]
[1721768304787,1.12272691,66032.0,66031.0,0.07348942]
[1721768304963,1.12372691,66032.0,66031.0,0.08348942]
[1721768306094,0.82084391,66032.0,66031.0,0.08348942]
[1721768307256,1.12372691,66032.0,66031.0,0.08348942]
[1721768309692,1.12372691,66032.0,66031.0,0.01]
[1721768309894,1.57660991,66032.0,66031.0,0.01]
[1721768310104,1.58604806,66032.0,66031.0,0.01]
[1721768310470,1.58604806,66032.0,66031.0,0.004]
[1721768310471,1.58504806,66032.0,66031.0,0.004]
[1721768310682,1.060108,66031.0,66030.0,0.000924]
[1721768310974,1.30712791,66031.0,66030.0,0.000924]
[1721768313059,1.35712791,66031.0,66030.0,0.000924]
[1721768313261,1.36912791,66031.0,66030.0,0.001924]
[1721768313806,1.31912791,66031.0,66030.0,0.001924]
[1721768314021,1.32512791,66031.0,66030.0,0.002924]
[1721768315048,1.81591591,66031.0,66030.0,0.002924]
[1721768315262,1.96287856,66031.0,66030.0,0.002924]
[1721768316732,1.91287856,66031.0,66030.0,0.002924]
[1721768316933,1.96287856,66031.0,66030.0,0.002924]
[1721768317185,1.91287856,66031.0,66030.0,0.002924]
[1721768317539,1.96287856,66031.0,66030.0,0.002924]
[1721768317741,1.91287856,66031.0,66030.0,0.002924]
[1721768317940,1.96287856,66031.0,66030.0,0.002924]
[1721768318144,1.91287856,66031.0,66030.0,0.002924]
[1721768319233,1.96287856,66031.0,66030.0,0.002924]
[1721768319761,1.91287856,66031.0,66030.0,0.002924]
[1721768320367,1.96287856,66031.0,66030.0,0.002924]
[1721768320951,1.91287856,66031.0,66030.0,0.002924]
[1721768321357,1.96287856,66031.0,66030.0,0.002924]
[1721768324359,1.91287856,66031.0,66030.0,0.002924]
[1721768324901,1.96287856,66031.0,66030.0,0.002924]
[1721768325071,1.91287856,66031.0,66030.0,0.002924]
[1721768327743,1.76591591,66031.0,66030.0,0.002924]
[1721768329719,1.81591591,66031.0,66030.0,0.002924]
[1721768330756,2.99674243,66031.0,66030.0,0.002924]
[1721768330956,1.82535443,66031.0,66030.0,0.002924]
[1721768331178,2.79385443,66031.0,66030.0,0.002924]
[1721768331378,2.94081708,66031.0,66030.0,0.002924]
[1721768333857,2.72231708,66031.0,66030.0,0.002924]
[1721768334094,2.89081708,66031.0,66030.0,0.002924]
[1721768334817,2.94081708,66031.0,66030.0,0.002924]
[1721768335769,2.96381708,66031.0,66030.0,0.002924]
[1721768336010,1.413014,66030.0,66029.0,0.000924]
[1721768336181,1.81643508,66030.0,66029.0,0.000924]
[1721768336414,1.81643539,66030.0,66029.0,0.000924]
[1721768337624,1.82243539,66030.0,66029.0,0.001924]
[1721768337797,1.82243539,66030.0,66029.0,0.002924]
[1721768337798,1.83343539,66030.0,66029.0,0.002924]
[1721768339412,1.83343539,66030.0,66023.0,0.000924]
[1721768339413,0.05,66029.0,66023.0,0.000924]
[1721768339616,0.151476,66017.0,66016.0,0.07348942]
[1721768339822,0.91384007,66017.0,66016.0,0.07348942]
[1721768340026,1.83824407,66017.0,66016.0,0.07348942]
[1721768340230,1.82880391,66017.0,66016.0,0.07348942]
[1721768341029,0.70144791,66017.0,66016.0,0.21998942]
[1721768341446,0.70944791,66017.0,66016.0,0.22098942]
[1721768341645,1.01239991,66017.0,66016.0,0.22098942]
[1721768341981,0.70944791,66017.0,66016.0,0.22098942]
[1721768342142,0.78884791,66017.0,66016.0,0.21998942]
[1721768342556,0.39849591,66017.0,66016.0,0.21998942]
[1721768342759,0.41249591,66017.0,66016.0,0.21998942]
[1721768342985,0.71544791,66017.0,66016.0,0.21998942]
[1721768343187,0.70144791,66017.0,66016.0,0.21998942]
[1721768343601,0.70144791,66017.0,66016.0,0.22098942]
[1721768343602,0.71844791,66017.0,66016.0,0.22098942]
[1721768344322,1.02139991,66017.0,66016.0,0.22098942]
[1721768345221,0.16401991,66017.0,66016.0,1.07837942]
[1721768345589,0.16401991,66017.0,66016.0,0.77542342]
[1721768346127,0.15701991,66017.0,66016.0,0.90126018]
[1721768346322,0.15701991,66017.0,66016.0,0.90125602]
[1721768346527,0.15801991,66017.0,66016.0,0.47246742]
[1721768346746,0.15801991,66017.0,66016.0,0.32098942]
[1721768346942,0.15801991,66017.0,66016.0,0.067]
[1721768346943,0.9907899,66017.0,66016.0,0.067]
[1721768347144,0.6878379,66017.0,66016.0,0.067]
[1721768347378,0.9917899,66017.0,66016.0,0.067]
[1721768347588,0.9917899,66017.0,66013.0,0.0611]
[1721768347589,0.454449,66014.0,66013.0,0.0611]
[1721768347802,0.90443491,66014.0,66013.0,0.0611]
[1721768349291,0.91043491,66014.0,66013.0,0.0621]
[1721768349501,0.95031813,66014.0,66013.0,0.0621]
[1721768349705,0.95431813,66014.0,66013.0,0.0621]
[1721768350093,0.91443491,66014.0,66013.0,0.0621]
[1721768353871,1.53580091,66014.0,66013.0,0.001]
[1721768354081,1.54524042,66014.0,66013.0,0.001]
[1721768356015,1.60604042,66014.0,66013.0,0.001]
[1721768356220,1.83620397,66014.0,66013.0,0.001]
[1721768356952,1.83220397,66014.0,66013.0,0.001]
[1721768357326,1.84320397,66014.0,66013.0,0.001]
[1721768357525,1.83376356,66014.0,66013.0,0.001]
[1721768358182,1.83376356,66014.0,66011.0,0.000924]
[1721768358183,1.060412,66012.0,66011.0,0.000924]
[1721768358384,1.30743191,66012.0,66011.0,0.000924]
[1721768359267,1.31543191,66012.0,66011.0,0.000924]
[1721768359700,1.32543191,66012.0,66011.0,0.000924]
[1721768361484,1.62840691,66012.0,66011.0,0.000924]
[1721768361693,1.77536956,66012.0,66011.0,0.000924]
[1721768362125,1.7840928,66012.0,66011.0,0.000924]
[1721768366198,1.8714928,66012.0,66011.0,0.000924]
[1721768366952,2.63093329,66012.0,66011.0,0.000924]
[1721768367164,2.71623329,66012.0,66011.0,0.000924]
[1721768367392,2.76623329,66012.0,66011.0,0.000924]
[1721768368049,2.83123329,66012.0,66011.0,0.000924]
[1721768368377,2.83723329,66012.0,66011.0,0.000924]
[1721768368810,2.85123329,66012.0,66011.0,0.000924]
[1721768369207,2.83723329,66012.0,66011.0,0.000924]
[1721768369563,2.85123441,66012.0,66011.0,0.000924]
[1721768369768,2.85123441,66012.0,66006.0,0.009372]
[1721768369769,0.05,66007.0,66006.0,0.009372]
[1721768369978,0.84665852,66007.0,66006.0,0.009372]
[1721768370233,1.61765452,66007.0,66006.0,0.009372]
[1721768370436,1.61765452,66007.0,66003.0,0.009372]
[1721768370437,2.347149,66004.0,66003.0,0.009372]
[1721768370806,2.347149,66004.0,65991.0,0.002]
[1721768370807,1.590355,65993.0,65992.0,0.0066]
[1721768370983,2.39332278,65993.0,65992.0,0.0066]
[1721768371214,2.44332278,65993.0,65992.0,0.0066]
[1721768371420,2.456879,65993.0,65992.0,0.0066]
[1721768371626,2.30592287,65993.0,65992.0,0.0066]
[1721768371827,2.39332287,65993.0,65992.0,0.0066]
[1721768372050,2.383879,65993.0,65992.0,0.0066]
[1721768372255,2.305479,65993.0,65992.0,0.0066]
[1721768372458,2.31219842,65993.0,65992.0,0.0066]
[1721768372869,2.31919842,65993.0,65992.0,0.0066]
[1721768373229,2.25049842,65993.0,65992.0,0.0066]
[1721768374025,2.54448098,65993.0,65992.0,0.0066]
[1721768375517,2.54448098,65993.0,65992.0,0.006642]
[1721768376265,2.59448098,65993.0,65992.0,0.006642]
[1721768376592,2.60392538,65993.0,65992.0,0.006642]
[1721768376792,2.62768417,65993.0,65992.0,0.006642]
[1721768377457,2.61823977,65993.0,65992.0,0.006642]
[1721768377573,2.62768429,65993.0,65992.0,0.006642]
[1721768377771,2.56823977,65993.0,65992.0,0.006642]
[1721768378027,2.62768425,65993.0,65992.0,0.006642]
[1721768378422,2.61823977,65993.0,65992.0,0.006642]
[1721768378796,2.62768431,65993.0,65992.0,0.006642]
[1721768379004,2.62768437,65993.0,65992.0,0.006642]
[1721768379424,2.69513977,65993.0,65992.0,0.006642]
[1721768379590,2.72758448,65993.0,65992.0,0.006642]
[1721768380207,2.79228448,65993.0,65992.0,0.006642]
[1721768380447,3.09534648,65993.0,65992.0,0.006642]
[1721768380650,3.08134648,65993.0,65992.0,0.006642]
[1721768381659,3.09534648,65993.0,65992.0,0.006642]
[1721768381861,1.716868,65992.0,65991.0,0.002]
[1721768382062,0.867106,65991.0,65985.0,0.009383]
[1721768382262,2.03278362,65991.0,65985.0,0.009383]
[1721768382469,2.35885462,65991.0,65985.0,0.009383]
[1721768382671,2.50581727,65991.0,65985.0,0.009383]
[1721768382870,2.50581824,65991.0,65985.0,0.009383]
[1721768383468,2.113923,65986.0,65985.0,0.009383]
[1721768383667,2.28394291,65986.0,65985.0,0.009383]
[1721768383837,2.91629956,65986.0,65985.0,0.009383]
[1721768383977,3.02779956,65986.0,65985.0,0.009383]
[1721768384184,2.67470556,65986.0,65985.0,0.009383]
[1721768384380,2.72470556,65986.0,65985.0,0.009383]
[1721768385214,2.73870556,65986.0,65985.0,0.009383]
[1721768385619,2.75270556,65986.0,65985.0,0.009383]
[1721768386198,2.70270556,65986.0,65985.0,0.009383]
[1721768386575,2.75270556,65986.0,65985.0,0.009383]
[1721768388738,3.05579956,65986.0,65985.0,0.009383]
[1721768389140,2.75270556,65986.0,65985.0,0.009383]
[1721768390148,3.05579956,65986.0,65985.0,0.009383]
[1721768391305,1.717094,65983.0,65982.0,0.009383]
[1721768391523,2.28641391,65983.0,65982.0,0.009383]
[1721768392138,2.35171391,65983.0,65982.0,0.009383]
[1721768392335,1.717143,65981.0,65980.0,0.009383]
[1721768392548,2.21592556,65981.0,65980.0,0.009383]
[1721768394310,2.30342556,65981.0,65980.0,0.009383]
[1721768394535,2.36417556,65981.0,65980.0,0.009383]
[1721768394936,2.37817556,65981.0,65980.0,0.009383]
[1721768395367,2.39217556,65981.0,65980.0,0.009383]
[1721768395574,2.37817556,65981.0,65980.0,0.009383]
[1721768395924,2.39217556,65981.0,65980.0,0.009383]
[1721768396398,2.4016228,65981.0,65980.0,0.009383]
[1721768396582,2.39217556,65981.0,65980.0,0.009383]
[1721768397479,2.40162269,65981.0,65980.0,0.009383]
[1721768398096,2.41722,65978.0,65966.0,0.21578942]
[1721768398328,0.50471,65976.0,65966.0,0.21578942]
[1721768398480,1.19726991,65976.0,65966.0,0.13678942]
[1721768398682,1.87654991,65976.0,65966.0,0.13678942]
[1721768398904,2.32665256,65976.0,65966.0,0.13678942]
[1721768399729,2.34065256,65976.0,65966.0,0.13678942]
[1721768400517,1.717369,65972.0,65966.0,0.13678942]
[1721768400727,2.07488891,65972.0,65966.0,0.13678942]
[1721768400884,2.22185156,65972.0,65966.0,0.13678942]
[1721768401668,2.22185156,65972.0,65966.0,0.07348942]
[1721768401875,2.23585156,65972.0,65966.0,0.07348942]
[1721768402119,0.26101991,65972.0,65971.0,0.1398]
[1721768402329,0.26101991,65972.0,65971.0,0.1898]
[1721768402330,0.31259891,65972.0,65971.0,0.1898]
[1721768402517,1.02041491,65972.0,65971.0,0.1398]
[1721768402650,1.42647397,65972.0,65971.0,0.1398]
[1721768402861,1.10931597,65972.0,65971.0,0.1398]
[1721768403057,0.99241491,65972.0,65971.0,0.1398]
[1721768403465,1.00641491,65972.0,65971.0,0.1398]
[1721768403934,0.16101991,65972.0,65971.0,0.391381]
[1721768404317,0.16101991,65972.0,65971.0,0.51731091]
[1721768404318,0.028,65972.0,65971.0,0.51731091]
[1721768404893,0.151565,65978.0,65971.0,0.36572991]
[1721768405108,0.151565,65978.0,65977.0,0.21738942]
[1721768405310,0.857827,65978.0,65977.0,0.21738942]
[1721768406763,1.00484691,65978.0,65977.0,0.21738942]
[1721768407175,0.99484691,65978.0,65977.0,0.21738942]
[1721768407611,0.69671591,65978.0,65977.0,0.21738942]
[1721768408019,0.81944026,65978.0,65977.0,0.21738942]
[1721768408227,1.12257126,65978.0,65977.0,0.21738942]
[1721768408430,0.82644026,65978.0,65977.0,0.21738942]
[1721768408807,1.12957126,65978.0,65977.0,0.21738942]
[1721768409209,0.82644026,65978.0,65977.0,0.21738942]
[1721768409634,1.12957126,65978.0,65977.0,0.21738942]
[1721768410155,0.82644026,65978.0,65977.0,0.21738942]
[1721768410359,1.12957126,65978.0,65977.0,0.21738942]
[1721768410758,0.82644026,65978.0,65977.0,0.21738942]
[1721768410957,1.12957126,65978.0,65977.0,0.21738942]
[1721768412183,1.12957126,65978.0,65977.0,0.1439]
[1721768412387,0.454731,65973.0,65972.0,0.0794]
[1721768412591,1.52675891,65973.0,65972.0,0.0794]
[1721768413004,1.52675891,65973.0,65972.0,0.1403]
[1721768413626,1.30805891,65973.0,65972.0,0.1403]
[1721768414911,1.31705891,65973.0,65972.0,0.1403]
[1721768415112,1.46402156,65973.0,65972.0,0.1403]
[1721768415330,1.45502156,65973.0,65972.0,0.1403]
[1721768415751,1.47383917,65973.0,65972.0,0.1403]
[1721768415955,1.46283917,65973.0,65972.0,0.1403]
[1721768416362,1.47283917,65973.0,65972.0,0.1403]
[1721768416800,1.47283917,65973.0,65971.0,0.002]
[1721768416801,2.114211,65972.0,65971.0,0.002]
[1721768417008,2.50819356,65972.0,65971.0,0.002]
[1721768417214,2.4676408,65972.0,65971.0,0.002]
[1721768417621,1.31752015,65972.0,65971.0,0.002]
[1721768417824,1.30807291,65972.0,65971.0,0.002]
[1721768418253,1.32207291,65972.0,65971.0,0.002]
[1721768418659,0.70175691,65972.0,65971.0,0.002]
[1721768418774,0.70175691,65972.0,65971.0,0.1477]
[1721768418775,0.39859891,65972.0,65971.0,0.1477]
[1721768418986,0.71575691,65972.0,65971.0,0.2477]
[1721768419191,0.26101991,65972.0,65971.0,0.2477]
[1721768419390,0.27501991,65972.0,65971.0,0.2477]
[1721768419617,0.27501991,65972.0,65971.0,0.399281]
[1721768419618,0.014,65972.0,65971.0,0.399281]
[1721768419794,0.014,65972.0,65971.0,1.005607]
[1721768420136,0.026,65972.0,65971.0,1.30877]
[1721768420302,0.212285,65985.0,65984.0,0.1957]
[1721768420504,0.66240391,65985.0,65984.0,0.2457]
[1721768420736,0.66240391,65985.0,65984.0,0.1457]
[1721768420737,1.10990409,65985.0,65984.0,0.1457]
[1721768420939,1.41300309,65985.0,65984.0,0.1457]
[1721768421097,1.35226809,65985.0,65984.0,0.1457]
[1721768421308,1.51300409,65985.0,65984.0,0.1457]
[1721768422170,1.52500409,65985.0,65984.0,0.1457]
[1721768422580,0.757805,65980.0,65979.0,0.075]
[1721768422786,1.00482491,65980.0,65979.0,0.075]
[1721768423028,1.30794691,65980.0,65979.0,0.075]
[1721768423236,1.00482491,65980.0,65979.0,0.1397]
[1721768423556,1.45490956,65980.0,65979.0,0.1397]
[1721768423742,1.15178756,65980.0,65979.0,0.1397]
[1721768423961,1.45490956,65980.0,65979.0,0.1397]
[1721768424321,1.67360956,65980.0,65979.0,0.0647]
[1721768425471,1.70060956,65980.0,65979.0,0.0647]
[1721768425836,1.68660956,65980.0,65979.0,0.0647]
[1721768426215,1.70060956,65980.0,65979.0,0.0647]
[1721768426854,1.71460956,65980.0,65979.0,0.0647]
[1721768427280,1.7009253,65980.0,65979.0,0.0647]
[1721768427683,1.7147653,65980.0,65979.0,0.0647]
[1721768428093,1.7017653,65980.0,65979.0,0.0647]
[1721768428267,0.30314,65976.0,65975.0,0.1441]
[1721768428474,0.90486991,65976.0,65975.0,0.0641]
[1721768428688,1.20800991,65976.0,65975.0,0.0641]
[1721768429544,1.061039,65973.0,65972.0,0.07441342]
[1721768429736,1.20805891,65973.0,65972.0,0.07441342]
[1721768430092,1.61121291,65973.0,65972.0,0.07441342]
[1721768430293,1.62065942,65973.0,65972.0,0.07441342]
[1721768430482,1.62065938,65973.0,65972.0,0.07441342]
[1721768430681,1.75817556,65973.0,65972.0,0.07441342]
[1721768431143,1.76762199,65973.0,65972.0,0.07441342]
[1721768431731,1.77262199,65973.0,65972.0,0.07441342]
[1721768432132,1.77017556,65973.0,65972.0,0.07441342]
[1721768432332,1.77962192,65973.0,65972.0,0.07441342]
[1721768432532,1.77962192,65973.0,65972.0,0.000924]
[1721768432938,1.7882645,65973.0,65972.0,0.000924]
[1721768433602,1.7812645,65973.0,65972.0,0.000924]
[1721768433806,1.8312645,65973.0,65972.0,0.000924]
[1721768434403,2.3331185,65973.0,65972.0,0.000924]
[1721768434615,2.3561185,65973.0,65972.0,0.000924]
[1721768434818,2.3701185,65973.0,65972.0,0.000924]
[1721768434963,2.37011951,65973.0,65972.0,0.000924]
[1721768435146,2.35611951,65973.0,65972.0,0.000924]
[1721768435557,2.37011951,65973.0,65972.0,0.000924]
[1721768435765,2.30611951,65973.0,65972.0,0.000924]
[1721768435979,2.34211951,65973.0,65972.0,0.000924]
[1721768436312,2.37011951,65973.0,65972.0,0.000924]
[1721768436519,2.35611951,65973.0,65972.0,0.000924]
[1721768436767,2.37011951,65973.0,65972.0,0.000924]
[1721768438000,2.06696551,65973.0,65972.0,0.000924]
[1721768438426,2.37011951,65973.0,65972.0,0.000924]
[1721768438603,2.37011951,65973.0,65963.0,0.009383]
[1721768438604,0.151597,65964.0,65963.0,0.009383]
[1721768438808,1.22370691,65964.0,65963.0,0.009383]
[1721768439022,1.53634969,65964.0,65963.0,0.009383]
[1721768439232,1.88009691,65964.0,65963.0,0.009383]
[1721768439472,1.83009691,65964.0,65963.0,0.009383]
[1721768439682,1.97705956,65964.0,65963.0,0.009383]
[1721768439923,2.02705956,65964.0,65963.0,0.009383]
[1721768440195,2.17820737,65964.0,65963.0,0.009383]
[1721768440681,2.12820737,65964.0,65963.0,0.009383]
[1721768440914,2.14220737,65964.0,65963.0,0.009383]
[1721768442159,2.14220777,65964.0,65963.0,0.009383]
[1721768442948,2.19220777,65964.0,65963.0,0.009383]
[1721768443348,2.14220777,65964.0,65963.0,0.009383]
[1721768443936,2.11420777,65964.0,65963.0,0.009383]
[1721768444141,2.12820777,65964.0,65963.0,0.009383]
[1721768444365,2.14220777,65964.0,65963.0,0.009383]
[1721768444577,2.17820777,65964.0,65963.0,0.009383]
[1721768444771,2.16420777,65964.0,65963.0,0.009383]
[1721768444972,2.14220777,65964.0,65963.0,0.009383]
[1721768445492,2.1922079,65964.0,65963.0,0.009383]
[1721768445699,2.1782079,65964.0,65963.0,0.009383]
[1721768445916,1.84060629,65964.0,65963.0,0.009383]
[1721768446135,1.68419526,65964.0,65963.0,0.085683]
[1721768446330,1.36700026,65964.0,65963.0,0.151783]
[1721768446565,1.52796291,65964.0,65963.0,0.151783]
[1721768447178,1.54196291,65964.0,65963.0,0.151783]
[1721768447376,1.54196291,65964.0,65963.0,0.1521929]
[1721768447958,1.54127333,65964.0,65963.0,0.1521929]
[1721768448770,1.39431068,65964.0,65963.0,0.1521929]
[1721768449140,1.34431068,65964.0,65963.0,0.1521929]
[1721768449370,1.34431068,65964.0,65963.0,0.2521929]
[1721768449371,1.04111568,65964.0,65963.0,0.2521929]
[1721768449726,0.73792068,65964.0,65963.0,0.2521929]
[1721768449992,0.72912233,65964.0,65963.0,0.2521929]
[1721768450345,0.71512233,65964.0,65963.0,0.2521929]
[1721768450552,1.00431733,65964.0,65963.0,0.2521929]
[1721768450756,1.01631733,65964.0,65963.0,0.2521929]
[1721768451171,1.01631733,65964.0,65932.0,0.04523319]
[1721768451172,0.05,65933.0,65932.0,0.04523319]
[1721768451384,0.05,65933.0,65926.0,0.009383]
[1721768451386,0.75,65927.0,65926.0,0.009383]
[1721768451597,1.752112,65927.0,65926.0,0.009383]
[1721768451773,2.155477,65927.0,65926.0,0.009383]
[1721768452206,2.40142693,65927.0,65926.0,0.009383]
[1721768452615,2.45142693,65927.0,65926.0,0.009383]
[1721768453278,2.46542693,65927.0,65926.0,0.009383]
[1721768453501,2.47442693,65927.0,65926.0,0.009383]
[1721768453707,2.75479193,65927.0,65926.0,0.009383]
[1721768453878,1.061938,65917.0,65916.0,0.07348942]
[1721768454083,1.42765791,65917.0,65916.0,0.07348942]
[1721768454282,1.42765791,65917.0,65911.0,0.07348942]
[1721768454283,0.455151,65912.0,65911.0,0.07348942]
[1721768454520,0.60217091,65912.0,65911.0,0.07348942]
[1721768454681,1.00239399,65912.0,65911.0,0.07348942]
[1721768455567,0.90560491,65912.0,65911.0,0.07348942]
[1721768456703,0.91960491,65912.0,65911.0,0.07348942]
[1721768457098,0.90560491,65912.0,65911.0,0.07348942]
[1721768457526,0.93260491,65912.0,65911.0,0.07348942]
[1721768457726,0.91860491,65912.0,65911.0,0.07348942]
[1721768457925,1.05056556,65912.0,65911.0,0.07348942]
[1721768458131,1.05956556,65912.0,65911.0,0.07348942]
[1721768458338,1.05056556,65912.0,65911.0,0.07348942]
[1721768458917,1.05756556,65912.0,65911.0,0.07348942]
[1721768459779,1.07156556,65912.0,65911.0,0.07348942]
[1721768460209,1.05756556,65912.0,65911.0,0.07441342]
[1721768460414,1.05956556,65912.0,65911.0,0.07441342]
[1721768460843,1.06656556,65912.0,65911.0,0.07441342]
[1721768461265,1.05056556,65912.0,65911.0,0.07441342]
[1721768461683,1.06656556,65912.0,65911.0,0.07441342]
[1721768461824,1.12736356,65912.0,65911.0,0.07441342]
[1721768463173,1.12236356,65912.0,65911.0,0.07441342]
[1721768464168,1.12236356,65912.0,65911.0,0.000924]
[1721768464369,1.22236356,65912.0,65911.0,0.000924]
[1721768464567,1.52579756,65912.0,65911.0,0.000924]
[1721768468434,1.22236356,65912.0,65911.0,0.000924]
[1721768468681,1.22236356,65912.0,65911.0,0.07441342]
[1721768469286,1.21536356,65912.0,65911.0,0.07441342]
[1721768469676,1.20636356,65912.0,65911.0,0.07441342]
[1721768469875,0.90292956,65912.0,65911.0,0.07441342]
[1721768470106,0.14701991,65912.0,65911.0,0.61839284]
[1721768470315,0.29873691,65912.0,65911.0,0.16323484]
[1721768470738,0.15501991,65912.0,65911.0,0.16323484]
[1721768471356,0.16101991,65912.0,65911.0,0.16323484]
[1721768471557,0.15301991,65912.0,65911.0,0.16323484]
[1721768471845,0.15301991,65912.0,65911.0,0.000924]
[1721768471846,0.6941275,65912.0,65911.0,0.000924]
[1721768472054,1.00760491,65912.0,65911.0,0.000924]
[1721768472257,1.00760491,65912.0,65909.0,0.034383]
[1721768472258,0.455166,65910.0,65909.0,0.034383]
[1721768472394,0.90562991,65910.0,65909.0,0.034383]
[1721768472597,1.00562991,65910.0,65909.0,0.034383]
[1721768473007,1.45603656,65910.0,65909.0,0.034383]
[1721768473399,1.46903656,65910.0,65909.0,0.034383]
[1721768473601,1.01862991,65910.0,65909.0,0.034383]
[1721768474017,0.42374191,65910.0,65909.0,0.06150442]
[1721768474224,0.72718591,65910.0,65909.0,0.06150442]
[1721768475088,0.43374191,65910.0,65909.0,0.06150442]
[1721768475311,0.73718591,65910.0,65909.0,0.06150442]
[1721768475515,0.43374191,65910.0,65909.0,0.06150442]
[1721768475762,0.73718591,65910.0,65909.0,0.06150442]
[1721768476208,0.43374191,65910.0,65909.0,0.06150442]
[1721768476619,0.73718591,65910.0,65909.0,0.06150442]
[1721768477033,0.28201991,65910.0,65909.0,0.06150442]
[1721768477471,0.43374191,65910.0,65909.0,0.06150442]
[1721768478342,0.28201991,65910.0,65909.0,0.06150442]
[1721768478562,0.43374191,65910.0,65909.0,0.06150442]
[1721768478765,0.28201991,65910.0,65909.0,0.06150442]
[1721768478976,0.43374191,65910.0,65909.0,0.06150442]
[1721768479179,0.28201991,65910.0,65909.0,0.06150442]
[1721768479403,0.43374191,65910.0,65909.0,0.06150442]
[1721768480071,0.28201991,65910.0,65909.0,0.06150442]
[1721768481263,0.30006558,65910.0,65909.0,0.06150442]
[1721768481489,0.035,65910.0,65909.0,1.08697007]
[1721768481822,0.1,65917.0,65916.0,0.02712142]
[1721768482023,0.24701991,65917.0,65916.0,0.02712142]
[1721768482990,0.39872491,65917.0,65916.0,0.02712142]
[1721768483224,0.41272491,65917.0,65916.0,0.02712142]
[1721768484424,0.36993194,65917.0,65909.0,0.20230442]
[1721768484646,0.36993194,65917.0,65912.0,0.02712142]
[1721768484647,0.151715,65913.0,65912.0,0.02712142]
[1721768484850,0.6616882,65913.0,65912.0,0.02712142]
[1721768486337,0.6636882,65913.0,65912.0,0.02712142]
[1721768487765,0.60416491,65913.0,65912.0,0.02666542]
[1721768488100,0.60416491,65913.0,65909.0,0.034383]
[1721768488101,0.75861,65910.0,65909.0,0.034383]
[1721768488287,0.90562991,65910.0,65909.0,0.034383]
[1721768488496,1.45603656,65910.0,65909.0,0.009383]
[1721768489262,1.45703656,65910.0,65909.0,0.009383]
[1721768491495,1.00662991,65910.0,65909.0,0.009383]
[1721768492691,1.01555889,65910.0,65909.0,0.009383]
[1721768496723,0.71211489,65910.0,65909.0,0.009383]
[1721768496958,0.70318591,65910.0,65909.0,0.009383]
[1721768497411,1.00662991,65910.0,65909.0,0.009383]
[1721768497639,1.15359256,65910.0,65909.0,0.009383]
[1721768497844,0.85014856,65910.0,65909.0,0.009383]
[1721768498065,0.24801991,65910.0,65909.0,0.03604842]
[1721768498271,0.24801991,65910.0,65909.0,0.37514143]
[1721768498272,0.001,65910.0,65909.0,0.37514143]
[1721768498492,0.001,65910.0,65909.0,1.51285754]
[1721768498919,0.001,65910.0,65909.0,1.39918492]
[1721768499532,0.001,65910.0,65909.0,1.51282305]
[1721768499737,0.00084,65911.0,65910.0,0.455166]
[1721768499938,0.00084,65911.0,65910.0,0.94444792]
[1721768500112,0.00084,65911.0,65910.0,1.10931614]
[1721768500318,0.00084,65911.0,65910.0,0.98527542]
[1721768501018,0.00084,65911.0,65910.0,1.53878411]
[1721768501217,0.00084,65911.0,65910.0,1.53876845]
[1721768501434,0.00084,65911.0,65910.0,1.44786405]
[1721768501623,0.00084,65911.0,65910.0,1.44986405]
[1721768502208,0.14785991,65911.0,65910.0,0.42286524]
[1721768502442,0.14785991,65911.0,65910.0,0.22866542]
[1721768502647,0.3143649,65911.0,65910.0,0.22866542]
[1721768502847,0.1626459,65911.0,65910.0,0.22866542]
[1721768503106,0.3143649,65911.0,65910.0,0.22866542]
[1721768503403,0.1626459,65911.0,65910.0,0.23166542]
[1721768503630,0.14785991,65911.0,65910.0,0.38338742]
[1721768504010,0.14785991,65911.0,65910.0,0.205]
[1721768504011,0.84601791,65911.0,65910.0,0.205]
[1721768504241,0.7481463,65911.0,65910.0,0.205]
[1721768504827,1.0515853,65911.0,65910.0,0.202]
[1721768504956,1.0515853,65911.0,65910.0,0.2]
[1721768505160,1.0615853,65911.0,65910.0,0.201]
[1721768505360,1.0615853,65911.0,65910.0,0.202]
[1721768505361,1.0645853,65911.0,65910.0,0.202]
[1721768505557,0.7611463,65911.0,65910.0,0.201]
[1721768505760,0.71601791,65911.0,65910.0,0.202]
[1721768506026,0.71901791,65911.0,65910.0,0.202]
[1721768506423,0.70901791,65911.0,65910.0,0.201]